Cogmind - Beta 11.1 @@@ ROGUE MODE // 2022.09.10 @ 07:55:25 Player: Rustynub Result: Self-destructed Performance ------------- Evolutions (3) 1500 Regions Visited (7) 1400 Robots Destroyed (13) 65 Value Destroyed (141) 141 Prototype IDs (3) 60 Alien Tech Used (0) 0 Bonus (0) 0 TOTAL SCORE: 3166 Bonus ------- None Cogmind --------- Core Integrity 491/700 Matter 150/300 Energy 100/100 System Corruption 0% Temperature Cool (0) Movement Core (50) Location -7/Factory Parts ------- > --- POWER (2) -------- (None) > --- PROPULSION (4) --- (None) > --- UTILITY (5) ------ Advanced Visual Processing Unit Transport Network Coupler > --- WEAPON (2) ------- (None) > --- INVENTORY (5) ---- Micro Nuclear Core Improved Signal Interpreter Power Shielding Improved Light Armor Plating System Shield Peak State ------------ > --- POWER ------------ Micro Nuclear Core > --- PROPULSION ------- Flight Unit Flight Unit Flight Unit > --- UTILITY ---------- Small Storage Unit Weight Redist. System Advanced Visual Processing Unit Experimental Sensor Array Transport Network Coupler > --- WEAPON ----------- Autogun Autogun > --- INVENTORY -------- Micro Nuclear Core Improved Heat Sink Improved Sensor Array Improved Signal Interpreter Power Shielding Improved Light Armor Plating Improved Medium Armor Plating [Rating: 29] Favorites ----------- Power Light Ion Engine Engine Light Ion Engine Power Core Micro Nuclear Core Propulsion Flight Unit Leg Aluminum Leg Wheel Wheel Flight Unit Flight Unit Utility Small Storage Unit Device Experimental Sensor Array Storage Small Storage Unit Processor Advanced Visual Processing Unit Protection Weapon Shielding Weapon Autogun Energy Gun EM Pulse Gun Ballistic Gun Autogun Build | -11 -10 -10 -9 -9 -8 -8 -7 ------- Run | Scr Mat Min Mat Min Mat Sto Fac Slots Evolved 6 | . . . 2 . 2 . 2 Power 1 | . . . . . . . 1 Propulsion 2 | . . . 2 . . . . Utility 3 | . . . . . 2 . 1 Weapon . | . . . . . . . . Parts Attached 33 | . 11 3 10 . . 6 3 Power 5 | . 1 1 1 . . . 2 Engine 4 | . 1 1 1 . . . 1 Core 1 | . . . . . . . 1 Reactor . | . . . . . . . . Propulsion 13 | . 6 . 6 . . 1 . Treads . | . . . . . . . . Leg 2 | . 2 . . . . . . Wheel 2 | . 2 . . . . . . Hover . | . . . . . . . . Flight 9 | . 2 . 6 . . 1 . Utility 9 | . 4 1 . . . 3 1 Device 3 | . . . . . . 3 . Storage 2 | . 2 . . . . . . Processor 2 | . . 1 . . . . 1 Hackware . | . . . . . . . . Protection 2 | . 2 . . . . . . Artifact . | . . . . . . . . Weapon 6 | . . 1 3 . . 2 . Energy Gun . | . . . . . . . . Energy Cannon . | . . . . . . . . Ballistic Gun 6 | . . 1 3 . . 2 . Ballistic Cannon . | . . . . . . . . Launcher . | . . . . . . . . Special Weapon . | . . . . . . . . Impact Weapon . | . . . . . . . . Slashing Weapon . | . . . . . . . . Piercing Weapon . | . . . . . . . . Special Melee Weapon . | . . . . . . . . Unidentified Prototypes 1 | . . . . . . 1 . Corrupted Parts 1 | . . 1 . . . . . System Corruption 4 | . . 4 . . . . . Parts Lost 8 | . . . 3 . . 2 3 Power 1 | . . . 1 . . . . Propulsion 5 | . . . 2 . . 2 1 Utility 2 | . . . . . . . 2 Weapon . | . . . . . . . . Highest Loss Streak 3 | . . . 3 . . 1 3 To Critical Strikes . | . . . . . . . . Average Slot Usage (%) 82 | . 93 69 78 100 81 86 80 Engine 9 | . 14 14 11 11 9 9 . Core 1 | . . . . . . . 6 Leg 3 | . 12 . . . . . . Wheel 3 | . 13 . . . . . . Flight 22 | . 1 28 38 44 36 33 21 Device 4 | . . . . . . 12 14 Storage 10 | . 13 14 11 11 9 9 6 Processor 9 | . . 12 11 11 9 9 14 Protection 2 | . 10 . . . . . . Energy Gun 3 | . 13 . . . . . . Ballistic Gun 10 | . 13 . 6 22 18 12 13 Naked Turns . | . . . . . . . . Heaviest Build 18 | 14 15 8 14 14 14 15 18 Greatest Support 26 | 20 26 8 16 16 16 22 18 Greatest Overweight (x) 4 | . 4 . . . . . 1 Average Overweight (x) . | . . . . . . . . Largest Inventory Capacity 8 | 8 8 8 8 8 8 8 8 Average Capacity 7 | 8 7 8 8 8 8 8 7 Most Carried 8 | 6 8 8 8 8 8 8 8 Average Carried 7 | 6 6 7 6 8 8 6 7 Final Capacity 8 | 8 8 8 8 8 8 8 5 Final Carried 8 | 6 6 8 8 8 8 5 5 Class Distribution -------------------- 54% | Mutant 25% | Scavenger-Mutant 19% | Scavenger-Sprinter Dominant Class ---------------- Mutant | -10/Materials Mutant | -10/Mines Scavenger-Sprinter | -9/Materials Scavenger-Sprinter | -9/Mines Scavenger-Sprinter | -8/Materials Scavenger-Sprinter | -8/Storage Scavenger-Mutant | -7/Factory Resources | -11 -10 -10 -9 -9 -8 -8 -7 ----------- Run | Scr Mat Min Mat Min Mat Sto Fac Matter Collected 621 | 200 112 21 235 . . . 53 Remotely . | . . . . . . . . Salvage Created 362 | . 177 . 107 . . . 78 Parts 34 | . 22 . 7 . . . 5 Haulers Intercepted 3 | . . . 2 . . . 1 Recyclers Shooed 1 | . 1 . . . . . . Parts Field Recycled . | . . . . . . . . Retrieved Matter . | . . . . . . . . Parts Self-Destructed . | . . . . . . . . Prevented . | . . . . . . . . Kills | -11 -10 -10 -9 -9 -8 -8 -7 ------- Run | Scr Mat Min Mat Min Mat Sto Fac Combat Hostiles Destroyed 5 | . 5 . . . . . . Guns 5 | . 5 . . . . . . Classes Destroyed 6 | . 4 . 1 . . . 1 Worker 2 | . 2 . . . . . . Builder 2 | . 2 . . . . . . Hauler 3 | . . . 2 . . . 1 Watcher 1 | . . . . . . . 1 Swarmer 3 | . 3 . . . . . . Grunt 2 | . 2 . . . . . . Best Kill Streak 5 | . 5 . 1 . . . 1 Combat Bots Only 3 | . 3 . . . . . . Max Kills in Single Turn 1 | . 1 . 1 . . . 1 Gunslinging . | . . . . . . . . Exploded . | . . . . . . . . Melee . | . . . . . . . . Uniques/NPCs Destroyed . | . . . . . . . . Combat | -11 -10 -10 -9 -9 -8 -8 -7 -------- Run | Scr Mat Min Mat Min Mat Sto Fac Damage Taken 916 | . 175 26 202 . . 106 407 Core 419 | . 59 16 119 . . 16 209 Absorbed by Shields . | . . . . . . . . Redirected to Shielding 13 | . 13 . . . . . . Core Remaining (%) 84 | 100 . 70 . 70 . 97 . Volleys Fired 56 | . 24 . 16 . . 2 14 Largest 2 | . 2 . 2 . . 2 2 Hottest 60 | . 60 . 46 . . 46 46 Shots Fired 101 | . 48 . 21 . . 4 28 Gun 101 | . 48 . 21 . . 4 28 Cannon . | . . . . . . . . Launcher . | . . . . . . . . Special . | . . . . . . . . Kinetic 77 | . 24 . 21 . . 4 28 Thermal . | . . . . . . . . Explosive . | . . . . . . . . Electromagnetic 24 | . 24 . . . . . . Robot Hit Streak 9 | . 9 . 3 . . 4 4 Robot Miss Streak 6 | . 6 . 3 . . 2 3 Penetration Max . | . . . . . . . . Secondary Targets . | . . . . . . . . Shots Hit Robots 57 | . 28 . 11 . . 2 16 Core Hits 20 | . 12 . 3 . . 1 4 Critical Kills . | . . . . . . . . Critical Parts Destroyed . | . . . . . . . . Critical Strikes . | . . . . . . . . Melee Attacks . | . . . . . . . . Impact . | . . . . . . . . Slashing . | . . . . . . . . Piercing . | . . . . . . . . Sneak Attacks . | . . . . . . . . Combat Hostiles . | . . . . . . . . Follow-up Attacks . | . . . . . . . . Damage Inflicted 836 | . 417 . 150 . . 28 241 Guns 793 | . 374 . 150 . . 28 241 Cannons . | . . . . . . . . Explosions 35 | . 35 . . . . . . Melee . | . . . . . . . . Ramming 8 | . 8 . . . . . . Kinetic 587 | . 168 . 150 . . 28 241 Thermal 35 | . 35 . . . . . . Explosive . | . . . . . . . . Electromagnetic 206 | . 206 . . . . . . Impact . | . . . . . . . . Slashing . | . . . . . . . . Piercing . | . . . . . . . . Highest Corruption 4 | . . 4 1 1 . . . Average Corruption 2 | . . 4 1 1 . . . Corruption Purged . | . . . . . . . . Corruption Blocked . | . . . . . . . . Effects 6 | . . 3 3 . . . . Message Errors 1 | . . 1 . . . . . Matter Fused 2 | . . . 2 . . . . Heat Flow Errors 2 | . . 1 1 . . . . Alerts 1 | . . 1 . . . . . Overload Shots . | . . . . . . . . Overflow Damage . | . . . . . . . . Projectiles . | . . . . . . . . Explosions . | . . . . . . . . Melee . | . . . . . . . . Knockbacks . | . . . . . . . . Impact . | . . . . . . . . Kinetic . | . . . . . . . . Secondary . | . . . . . . . . Self-Inflicted Damage . | . . . . . . . . Shots . | . . . . . . . . Rammed . | . . . . . . . . Targets Rammed 1 | . 1 . . . . . . Kicked 1 | . 1 . . . . . . Crushed . | . . . . . . . . Highest Temperature 264 | . 18 264 253 . . 3 5 Average Temperature 65 | . 12 139 82 . . 3 3 Received Heat Transfer 123 | . 36 . 33 . . 54 . Siege Activations . | . . . . . . . . Robots Corrupted . | . . . . . . . . Combat Hostiles . | . . . . . . . . Parts Fried 1 | . 1 . . . . . . Impact Corruptions . | . . . . . . . . Robots Melted . | . . . . . . . . Combat Hostiles . | . . . . . . . . Parts Melted . | . . . . . . . . Heat Transferred 50 | . 50 . . . . . . Parts Sabotaged . | . . . . . . . . Parts Stolen . | . . . . . . . . Parts Stripped . | . . . . . . . . Power Chain Reactions 1 | . 1 . . . . . . Missiles Intercepted . | . . . . . . . . Alert | -11 -10 -10 -9 -9 -8 -8 -7 ------- Run | Scr Mat Min Mat Min Mat Sto Fac Peak Influence 320 | . 108 112 199 5 1 320 180 Initial 145 | . . 37 43 5 1 . 145 Average 91 | . 38 42 127 5 . 105 151 Maximum Alert Level 1 | . . . . . . 1 . Low Security (%) 98 | 100 100 100 100 100 100 84 100 Level 1 1 | . . . . . . 15 . Level 2 . | . . . . . . . . Level 3 . | . . . . . . . . Level 4 . | . . . . . . . . Level 5 . | . . . . . . . . High Security . | . . . . . . . . Max Security . | . . . . . . . . Squads Dispatched 8 | . 2 . 2 . . 2 2 Investigation 7 | . 2 . 2 . . 2 1 Extermination . | . . . . . . . . Reinforcement 1 | . . . . . . . 1 Assault . | . . . . . . . . Garrison . | . . . . . . . . Intercept . | . . . . . . . . Searches Triggered . | . . . . . . . . Construction Impeded . | . . . . . . . . Haulers Reinforced . | . . . . . . . . Active Scanning Responses . | . . . . . . . . Cargo Convoy Interrupts . | . . . . . . . . Stealth | -11 -10 -10 -9 -9 -8 -8 -7 --------- Run | Scr Mat Min Mat Min Mat Sto Fac Distress Signals 6 | . 2 . 2 . . 2 . Communications Jammed . | . . . . . . . . Distress Signals . | . . . . . . . . Times Spotted 63 | . 10 6 18 . . 25 4 Peak Tracking Total 19 | . 4 3 5 . . 19 2 Tactical Retreats 9 | . 1 2 2 . . 4 . Traps | -11 -10 -10 -9 -9 -8 -8 -7 ------- Run | Scr Mat Min Mat Min Mat Sto Fac Traps Triggered 4 | . . . 1 . . 2 1 Indirectly . | . . . . . . . . Trap Hack Attempts . | . . . . . . . . Triggered . | . . . . . . . . Disarmed . | . . . . . . . . Reprogrammed . | . . . . . . . . Reused . | . . . . . . . . Traps Extracted . | . . . . . . . . Installed . | . . . . . . . . Triggered . | . . . . . . . . Machines | -11 -10 -10 -9 -9 -8 -8 -7 ---------- Run | Scr Mat Min Mat Min Mat Sto Fac Machines Disabled . | . . . . . . . . Max in Single Turn . | . . . . . . . . Garrison Access 1 | . . . . . . 1 . Machines Sabotaged . | . . . . . . . . Garrisons Compromised . | . . . . . . . . Overloaded Fab Kills . | . . . . . . . . Hacking | -11 -10 -10 -9 -9 -8 -8 -7 --------- Run | Scr Mat Min Mat Min Mat Sto Fac Machines Accessed 17 | . 4 1 5 . . 4 3 Terminals 11 | . 3 . 3 . . 2 3 Fabricators . | . . . . . . . . Repair Stations 1 | . . . 1 . . . . Recycling Units 3 | . 1 . 1 . . 1 . Scanalyzers . | . . . . . . . . Garrison Access 1 | . . . . . . 1 . Total Hacks 46 | . 10 1 21 . . 9 5 Successful 19 | . 6 1 8 . . 3 1 Failed 27 | . 4 . 13 . . 6 4 Catastrophic 6 | . 1 . 2 . . 1 2 Database Lockouts . | . . . . . . . . Manual . | . . . . . . . . Terminals 34 | . 9 . 14 . . 6 5 Fabricators . | . . . . . . . . Repair Stations 5 | . . . 5 . . . . Recycling Units 4 | . 1 . 2 . . 1 . Scanalyzers . | . . . . . . . . Garrison Access 2 | . . . . . . 2 . Terminal Hacks 14 | . 5 1 6 . . 1 1 Record 3 | . 1 . 2 . . . . Prototype ID Bank 1 | . . . 1 . . . . Open Door 1 | . . 1 . . . . . Open DSF 1 | . . . . . . . 1 Branch Access Points 1 | . 1 . . . . . . Alert Level 1 | . 1 . . . . . . Patrol Status 1 | . . . 1 . . . . Investigation Status 1 | . . . . . . 1 . Hauler Manifests 2 | . 1 . 1 . . . . Registered Components 1 | . 1 . . . . . . Zone Layout 1 | . . . 1 . . . . Fabricator Hacks . | . . . . . . . . Repair Station Hacks 1 | . . . 1 . . . . Scan Component 1 | . . . 1 . . . . Recycling Unit Hacks 3 | . 1 . 1 . . 1 . Report Inventory 1 | . . . . . . 1 . Retrieve Components 2 | . 1 . 1 . . . . Scanalyzer . | . . . . . . . . Garrison Access Hacks 1 | . . . . . . 1 . Seal Access 1 | . . . . . . 1 . Unauthorized Hacks . | . . . . . . . . Terminals . | . . . . . . . . Fabricators . | . . . . . . . . Repair Stations . | . . . . . . . . Recycling Units . | . . . . . . . . Scanalyzers . | . . . . . . . . Garrison Access . | . . . . . . . . Data Cores Recovered . | . . . . . . . . Used . | . . . . . . . . Hacking Detections 11 | . 3 . 4 . . 2 2 Full Trace Events 7 | . 2 . 3 . . 1 1 Feedback Events . | . . . . . . . . Feedback Blocked . | . . . . . . . . Robot Schematics Acquired . | . . . . . . . . Robots Built . | . . . . . . . . Authchips . | . . . . . . . . Time . | . . . . . . . . Total Robot Build Rating . | . . . . . . . . Part Schematics Acquired . | . . . . . . . . Parts Built . | . . . . . . . . Authchips . | . . . . . . . . Time . | . . . . . . . . Total Part Build Rating . | . . . . . . . . Parts Repaired . | . . . . . . . . Time . | . . . . . . . . Parts Recycled . | . . . . . . . . Recycled Matter . | . . . . . . . . Retrieved Matter . | . . . . . . . . Retrieved Components 8 | . 2 . 6 . . . . Parts Scanalyzed . | . . . . . . . . Part Schematics Acquired . | . . . . . . . . Parts Damaged . | . . . . . . . . Bothacking | -11 -10 -10 -9 -9 -8 -8 -7 ------------ Run | Scr Mat Min Mat Min Mat Sto Fac Used RIF Installer . | . . . . . . . . Robots Hacked . | . . . . . . . . Non-combat . | . . . . . . . . Combat . | . . . . . . . . Robot Hacks Applied . | . . . . . . . . Relay Couplers Released . | . . . . . . . . Fabnet Peak Effective % . | . . . . . . . . Robots Rewired . | . . . . . . . . Allies Hacked . | . . . . . . . . Hacks Repelled . | . . . . . . . . Allies | -11 -10 -10 -9 -9 -8 -8 -7 -------- Run | Scr Mat Min Mat Min Mat Sto Fac Total Allies 2 | . . . . 2 . . . Largest Group 2 | . . . . 2 2 1 . Highest-Rated Group 50 | . . . . 50 50 19 . Highest-Rated Ally 31 | . . . . 31 31 19 . Total Orders . | . . . . . . . . Ally Attacks 5 | . . . . . 5 . . Total Damage 64 | . . . . . 64 . . Kills . | . . . . . . . . Allies Corrupted . | . . . . . . . . Allies Melted . | . . . . . . . . Intel | -11 -10 -10 -9 -9 -8 -8 -7 ------- Run | Scr Mat Min Mat Min Mat Sto Fac Robot Analysis Total . | . . . . . . . . Derelict Logs Recovered 1 | . . 1 . . . . . Drone Launches . | . . . . . . . . Drone Recoveries . | . . . . . . . . Exploration | -11 -10 -10 -9 -9 -8 -8 -7 ------------- Run | Scr Mat Min Mat Min Mat Sto Fac Turns Passed 1861 | 35 492 255 430 24 22 140 463 Spaces Moved 2482 | 30 390 597 790 29 19 243 384 Core 2 | . 2 . . . . . . Treads . | . . . . . . . . Legs 130 | 30 100 . . . . . . Wheels 219 | . 219 . . . . . . Hover . | . . . . . . . . Flight 2131 | . 69 597 790 29 19 243 384 Fastest Speed 31 | 120 37 37 31 31 31 31 34 Average Speed 43 | 120 89 37 32 31 31 32 34 Slowest Speed 250 | 120 250 37 37 31 31 34 117 Overloaded Moves . | . . . . . . . . Propulsion Burnouts . | . . . . . . . . Robots Hopped 11 | . . 3 5 . . 1 2 Cave-ins Triggered . | . . . . . . . . Exploration Rate (%) 33 | 3 45 94 45 12 2 56 11 Regions Visited 7 Branch Regions 3 Pre-discovered Areas 1 | . . 1 . . . . . Known Exits Taken 1 | . 1 . . . . . . Unknown Exits Taken 6 | 1 . 1 1 1 1 1 . Scrap Searched 1 | . . 1 . . . . . Spaces Dug . | . . . . . . . . Terrain Destroyed 3 | . 3 . . . . . . Melee . | . . . . . . . . Projectile . | . . . . . . . . AOE 3 | . 3 . . . . . . Terrain Rammed . | . . . . . . . . Walls Destroyed . | . . . . . . . . Machines Disabled . | . . . . . . . . Actions | -11 -10 -10 -9 -9 -8 -8 -7 --------- Run | Scr Mat Min Mat Min Mat Sto Fac Total 3157 | 29 490 628 940 43 34 300 693 Wait 534 | . 37 21 114 15 16 47 284 Move 2453 | 29 389 590 779 28 18 240 380 Hop 11 | . . 3 5 . . 1 2 Pick Up 37 | . 12 6 11 . . 2 6 Fast Attach 1 | . . 1 . . . . . Attach 25 | . 5 1 10 . . 6 3 Detach 5 | . 2 1 1 . . 1 . Swap 7 | . 6 1 . . . . . Drop 27 | . 14 4 4 . . 1 4 Fire 56 | . 24 . 16 . . 2 14 Melee . | . . . . . . . . Ram . | . . . . . . . . Kick 1 | . 1 . . . . . . Crush . | . . . . . . . . Escape Stasis . | . . . . . . . . Rewire . | . . . . . . . . Trap . | . . . . . . . . Miscellaneous . | . . . . . . . . Route ------- -11/Scrapyard -10/Materials (discovered 2 exits: *Mat / *Min) -10/Mines (discovered 2 exits: *Mat x2) -9/Materials -9/Mines -8/Materials -8/Storage -7/Factory (discovered 1 exit: [*Low]) History --------- Turn | Location | Event 1 | -11/Scrapyard | Discovered new exit (range 3) 36 | -11/Scrapyard | Entered Materials 189 | -10/Materials | Identified exit to Mines 326 | -10/Materials | Build established: Mutant 516 | -10/Materials | Discovered new exit (range 15) 528 | -10/Materials | Entered Mines 531 | -10/Mines | YI-UF0 nonchalantly dropped a Grenade Launcher on the ground 542 | -10/Mines | Met a Derelict who couldn't figure out how to use a Trap Extractor 616 | -10/Mines | Learned location of Zion (-6) 631 | -10/Mines | A weapon hastily lodged in a ceiling crevice suddenly fell to the ground 654 | -10/Mines | Discovered new exit (range 3) 662 | -10/Mines | Found a damaged Exp. Sensor Array with a note attached 663 | -10/Mines | Found Prototype Device 724 | -10/Mines | Discovered new exit (range 12) 783 | -10/Mines | Entered Materials 783 | -9/Materials | Evolved 2 slots: Propulsion x2 854 | -9/Materials | Lost 3 parts (1p2n) 1205 | -9/Materials | Discovered new exit (range 19) 1213 | -9/Materials | Entered Mines 1216 | -9/Mines | Discovered new exit (range 9) 1237 | -9/Mines | Entered Materials 1237 | -8/Materials | Accompanied by 2 allies 1237 | -8/Materials | Evolved 2 slots: Utility x2 1237 | -8/Materials | Discovered new exit (range 15) 1242 | -8/Materials | Led the pair of lost Derelicts to an unsafe place 1259 | -8/Materials | Entered Storage 1259 | -8/Storage | Accompanied by 1 ally 1295 | -8/Storage | Identified Exp. Sensor Array 1318 | -8/Storage | Build established: Scavenger-Sprinter 1387 | -8/Storage | Discovered new exit (range 5) 1399 | -8/Storage | Entered Factory 1399 | -7/Factory | Evolved 2 slots: Power x1, Utility x1 1501 | -7/Factory | Discovered new exit (range 5) 1637 | -7/Factory | Build established: Scavenger-Mutant 1862 | -7/Factory | Self-destructed Last Messages --------------- 01520_ A-02 Transporter destroyed. 01524_ Acquired 53 matter. 01536_ Connecting with Terminal... 01796_ K-01 Serf cleans the Fusion Modulator. 01812_ ALERT: Suspicious intruders detected, dispatching Cutter reinforcements to area. 01814_ K-01 Serf cleans the Fusion Modulator. 01823_ Connecting with Terminal... 01823_ ALERT: Suspicious activity at Terminal F018. Dispatching Investigation squad. 01824_ Weight Redist. System destroyed. 01824_ Knocked back. 01824_ Dropped Autogun. 01832_ Flight Unit severed. 01846_ R-06 Scavenger collects Autogun. 01847_ Mic. Nuclear Core severed. 01852_ Flight Unit destroyed. 01856_ Sml. Storage Unit destroyed. 01858_ Exp. Sensor Array severed. 01862_ R-06 Scavenger collects Mic. Nuclear Core. Map ----- +----------------------------------------------------+ | ???????????????????????????# #???????????????????? | | ????????????????????????#### ####????????????????# | | ????????????????????????# ###+###########T # | | ??????????############### | | ????????? " | | ????????? "T | | ????????? | | ??????????????????####### | | ????????????????????????# ###+#############? | | ????????????????????????#### ## #??? | | ????????????????????????# # """ """ #??? | | ????????????????????????#= """ # """ """ #??? | | ????????????????????????# """ # """ """ #??? | | ????????????????????????# """ # #??? | | ????????????????????????# # """ """ #??? | | ????????????????????????# # """ """ #??? | | ????????????????????????# # """ """ #??? | | ????????????????????????# # #??? | | ????????????????????????# # #??? | | ????????????????????????# """" # #??? | | ??????????#############?# """" # #??? | | ??????????# ! #?# """" ###+##########??? | | ??????????# "" #?#[ """" #?# #???????????? | | ??????????# "" #?# r"""" #?# #???????????? | | ??????????# """ T" #?# !"""" #?# ############? | | ??????????# """ "" #?#@c"""" #?# ## #? | | ??????????# """ "" #?#=c #?# + """ """ #? | | ####??????# #?#! #?# # """ """ #? | | #############+################### # """ """ #? | | # "" "" #? | | ############ # "" "" #? | | #??????????# + #? | | #??????????##################+# # [ #? | | #?????????????????????????????# ###########? | | #?????????????????????????????# ????????? | | ###?????????????????????????????# ??????? | | #???????????????????????????????# ????? | | #???????????????????????????????# ???? | | /#???????????????????????????????# ??? | | !#???????????????????????????????# ########??? | | #???????????????????????????????# #?????????? | | #???????????????????????????????# #?????????? | | #???????????????????????????????+ +?????????? | | #???????????????????????????????# #?????????? | | ##??????????????????????????????# #?????????? | | #??????????????????????????????# #?????????? | | #??????????????????????????????# #?????????? | | #??????????????????????????????? #?????????? | | #??????????????????????????????? ??????????? | | #??????????????????????????????????????????????? | +----------------------------------------------------+ Best States ------------- Heat Dissipation 34 Energy Generation 15 Energy Capacity 250 Matter Stores 300 Matter Capacity 300 Sight Range 20 Robot Scan Range 20 Terrain Scan Density 10 Additional Mass Support 6 Weapon Shielding 33 Evasion (%) 63 Item Schematics ----------------- None Robot Schematics ------------------ None Fabricated ------------ Nothing Alien Tech Used ----------------- None Achievements -------------- None Challenges ------------ None Game ------ Seed ThrusterAlloyEdition Manual? 0 Play Time 00:44:13 Cumulative 79.7 hours Start 2022.09.10 @ 06:59:50 End 2022.09.10 @ 07:55:25 Sessions 1 Manual Loads 0 Difficulty Rogue Special Mode None Game No. 148 Rogue 148 Adventurer 0 Explorer 0 Win Type - Total 0 Types 0/0/0/0/0/0/0/0/0 Lore% 49 Gallery% 44 Achievement% 29 Wizard Run 0 Options --------- ASCII 1 Keyboard 0 Movement Numpad Keybinds 0 Fullscreen 2 Font 18/SmallcapsGlow Map View 76x50 Tactical HUD 1 Map Filters NONE Filters NONE Steam 1 RUN: 5f7acf89-5fd0-4309-8043-0c8d4102dcd6